bitfinex/quotes_SOLUSD_20251018
["timestamp","ask_amount","ask_price","bid_price","bid_amount"]
[1760749697038,24.93828597,183.48,183.44,0.67]
[1760749697213,24.93828597,183.48,183.45,0.67]
[1760749697416,2.05828597,183.47,183.45,0.67]
[1760749697828,2.05828597,183.47,183.45,6.12097956]
[1760749699339,2.05828597,183.46,183.45,6.12097956]
[1760749700939,17.97544845,183.56,183.45,6.66602518]
[1760749701246,17.97544845,183.56,183.46,0.67]
[1760749701247,2.05828597,183.5,183.46,0.67]
[1760749701450,2.05828597,183.5,183.47,19.07668827]
[1760749701622,2.05828597,183.5,183.48,0.67]
[1760749702532,2.05828597,183.49,183.48,0.67]
[1760749703952,22.88,183.48,183.42,0.2]
[1760749704236,2.05828597,183.43,183.42,0.2]
[1760749704637,2.74828597,183.43,183.42,0.2]
[1760749707550,2.05828597,183.43,183.42,0.87]
[1760749707760,2.05828597,183.44,183.42,6.32192622]
[1760749707938,2.05828597,183.43,183.42,0.87]
[1760749708134,2.05828597,183.43,183.42,0.2]
[1760749708328,2.74828597,183.43,183.42,0.2]
[1760749708638,2.05828597,183.43,183.42,0.2]
[1760749709246,2.05828597,183.43,183.42,5.65196816]
[1760749712658,2.05828597,183.43,183.42,0.2]
[1760749715064,2.05828597,183.43,183.42,5.65196816]
[1760749715961,2.05828597,183.44,183.42,5.65196816]
[1760749716262,2.05828597,183.46,183.43,0.67]
[1760749716440,2.05828597,183.46,183.44,0.67]
[1760749716637,2.05828597,183.47,183.44,0.67]
[1760749716840,2.05828597,183.46,183.44,0.67]
[1760749717680,0.69,183.52,183.45,0.67]
[1760749717848,2.05828597,183.48,183.45,0.67]
[1760749718175,2.05828597,183.47,183.45,0.67]
[1760749718546,2.05828597,183.47,183.46,5.45077946]
[1760749721788,36.56248126,183.51,183.46,5.45077946]
[1760749721789,2.05828597,183.49,183.46,19.77772811]
[1760749721963,2.05828597,183.49,183.47,0.7]
[1760749722575,2.05828597,183.49,183.48,0.7]
[1760749722780,2.05828597,183.49,183.46,19.77772811]
[1760749722959,2.05828597,183.49,183.47,0.7]
[1760749723781,2.05828597,183.49,183.48,5.4501853]
[1760749724984,2.77828597,183.49,183.47,5.45046037]
[1760749725195,2.77828597,183.49,183.44,14.32842838]
[1760749725196,2.77828597,183.48,183.45,5.45107658]
[1760749725367,2.05828597,183.46,183.45,5.45107658]
[1760749726167,2.05828597,183.46,183.45,6.15107658]
[1760749726879,2.05828597,183.47,183.45,6.15107658]
[1760749727590,2.05828597,183.48,183.45,19.77876804]
[1760749728688,2.05828597,183.47,183.45,19.77876804]
[1760749729182,2.77828597,183.46,183.43,5.45167093]
[1760749729382,2.05828597,183.44,183.43,5.45167093]
[1760749730366,2.05828597,183.44,183.43,6.15167093]
[1760749730564,2.05828597,183.46,183.43,6.15167093]
[1760749730765,2.05828597,183.46,183.44,0.7]
[1760749730965,2.05828597,183.47,183.44,0.7]
[1760749731978,2.05828597,183.47,183.45,5.45107658]
[1760749732179,2.05828597,183.47,183.45,6.15107658]
[1760749735993,2.05828597,183.47,183.44,19.0798081]
[1760749736176,2.05828597,183.48,183.46,0.7]
[1760749736367,23.6,183.52,183.46,0.7]
[1760749736572,2.05828597,183.49,183.46,0.7]
[1760749737086,0.72,183.51,183.47,0.7]
[1760749737283,2.05828597,183.49,183.47,0.7]
[1760749737996,2.05828597,183.49,183.48,5.4501853]
[1760749739298,2.77828597,183.49,183.47,5.45044075]
[1760749739593,3.93505921,183.48,183.47,5.45044075]
[1760749739777,3.21505921,183.48,183.47,5.45044075]
[1760749740292,3.21505921,183.48,183.45,0.7]
[1760749740487,3.21505921,183.5,183.46,19.77772811]
[1760749740803,22.88,183.52,183.46,19.77772811]
[1760749740804,3.21505921,183.51,183.47,0.7]
[1760749740978,3.21505921,183.5,183.47,0.7]
[1760749741496,4.35522389,183.56,183.48,1.2449888]
[1760749741681,3.21505921,183.55,183.49,0.7]
[1760749741886,3.21505921,183.57,183.5,3.75998861]
[1760749742091,3.21505921,183.58,183.52,3.21505921]
[1760749742292,3.21505921,183.58,183.53,1.24484032]
[1760749742486,3.21505921,183.59,183.54,19.76941265]
[1760749742695,3.21505921,183.59,183.55,1.24478095]
[1760749742996,3.21505921,183.59,183.56,0.7]
[1760749743191,3.21505921,183.59,183.55,0.54478095]
[1760749743390,3.21505921,183.59,183.57,0.7]
[1760749743596,3.21505921,183.6,183.55,0.54478095]
[1760749743792,3.21505921,183.6,183.58,0.7]
[1760749744098,3.21505921,183.61,183.59,0.7]
[1760749744282,3.21505921,183.62,183.59,0.7]
[1760749744481,0.1,183.63,183.6,6.14662309]
[1760749744681,0.1,183.63,183.61,1.24460291]
[1760749744888,0.1,183.63,183.61,4.45966212]
[1760749745081,0.1,183.63,183.62,0.7]
[1760749745288,0.1,183.63,183.62,3.91505921]
[1760749745593,0.1,183.63,183.62,0.7]
[1760749746695,0.1,183.63,183.62,6.14602984]
[1760749749589,0.1,183.63,183.62,5.44602984]
[1760749749797,3.31505921,183.63,183.62,5.44602984]
[1760749750807,3.31505921,183.63,183.6,19.06318082]
[1760749750987,3.31505921,183.63,183.61,0.68]
[1760749751987,3.31505921,183.63,183.62,5.44602984]
[1760749752189,0.1,183.63,183.62,5.44602984]
[1760749752390,3.31505921,183.63,183.62,5.44602984]
[1760749753700,0.1,183.63,183.62,5.44602984]
[1760749753912,0.1,183.63,183.61,5.44632645]
[1760749754091,0.1,183.63,183.61,6.12632645]
[1760749754282,0.1,183.63,183.61,5.44632645]
[1760749754486,0.1,183.63,183.62,0.68]
[1760749754781,0.1,183.63,183.62,1.22439531]
[1760749754981,0.1,183.63,183.62,4.43945452]
[1760749755287,0.1,183.63,183.61,5.44632645]
[1760749755493,3.31505921,183.63,183.61,5.44632645]
[1760749755691,3.88505921,183.62,183.57,13.61842006]
[1760749755893,3.21505921,183.59,183.57,13.61842006]
[1760749756093,3.21505921,183.59,183.57,19.74593327]
[1760749756293,3.21505921,183.58,183.57,5.44751321]
[1760749756888,3.88505921,183.58,183.57,5.44751321]
[1760749757103,3.21505921,183.58,183.57,5.44751321]
[1760749758004,3.21505921,183.58,183.55,5.44810678]
[1760749758212,3.21505921,183.57,183.55,6.12810678]
[1760749758394,3.21505921,183.59,183.56,0.68]
[1760749758595,22.98,183.63,183.57,0.68]
[1760749758813,3.21505921,183.62,183.57,0.68]
[1760749758986,3.21505921,183.62,183.58,0.54454357]
[1760749759191,3.31505921,183.63,183.59,0.68]
[1760749759391,3.31505921,183.63,183.6,0.68]
[1760749759608,0.1,183.63,183.6,0.68]
[1760749759801,0.1,183.63,183.61,0.68]
[1760749760002,0.1,183.63,183.62,5.44602984]
[1760749760313,0.1,183.63,183.62,6.12602984]
[1760749760816,0.1,183.63,183.62,5.44602984]
[1760749762611,0.1,183.63,183.61,5.44632645]
[1760749762814,0.1,183.63,183.61,6.12632645]
[1760749764211,0.1,183.63,183.62,0.68]
[1760749764814,0.1,183.63,183.62,6.12602984]
[1760749765916,0.1,183.63,183.62,9.34108905]
[1760749766300,0.1,183.63,183.62,9.62541219]
[1760749766498,0.1,183.66,183.63,0.28432314]
[1760749766703,0.1,183.66,183.65,5.44514021]
[1760749767004,0.1,183.66,183.65,6.12514021]
[1760749767618,0.1,183.66,183.65,6.66947623]
[1760749768715,0.77,183.66,183.65,5.44514021]
[1760749769015,3.31505921,183.66,183.63,19.74006642]
[1760749769608,3.31505921,183.66,183.64,0.68]
[1760749769803,5.54338854,183.71,183.65,4.43957323]
[1760749769804,0.1,183.71,183.65,4.43957323]
[1760749770006,0.1,183.76,183.7,3.49938235]
[1760749770213,0.1,183.76,183.71,3.75939539]
[1760749770411,0.1,183.76,183.71,4.43939539]
[1760749770607,1e-08,183.74,183.73,26.09505921]
[1760749770813,1e-08,183.74,183.73,32.08210541]
[1760749771002,1e-08,183.74,183.73,32.76210541]
[1760749771203,0.1,183.76,183.73,32.76210541]
[1760749771204,1e-08,183.76,183.74,0.28432314]
[1760749771504,1e-08,183.76,183.75,4.72360002]
[1760749772906,1e-08,183.76,183.75,10.16577689]
[1760749775799,1e-08,183.76,183.75,12.06360917]
[1760749776011,1e-08,183.76,183.75,9.88145375]
[1760749778227,1e-08,183.76,183.75,13.38083611]
[1760749779701,1e-08,183.76,183.75,41.10083611]
[1760749781632,1e-08,183.76,183.75,12.41651297]
[1760749781812,1e-08,183.76,183.75,9.20145375]
[1760749782516,1e-08,183.76,183.75,9.87145375]
[1760749783255,1e-08,183.76,183.75,9.20145375]
[1760749783617,1e-08,183.76,183.75,5.98639454]
[1760749783937,1e-08,183.76,183.75,9.20145375]
[1760749785723,1e-08,183.76,183.75,10.15577689]
[1760749786118,1e-08,183.76,183.75,13.3708361]
[1760749788631,1e-08,183.76,183.75,41.0708361]
[1760749791022,1e-08,183.76,183.75,37.85577689]
[1760749791830,1e-08,183.76,183.75,34.64071768]
[1760749792031,1e-08,183.76,183.75,9.48577689]
[1760749793245,1e-08,183.76,183.75,10.15577689]
[1760749793420,1e-08,183.82,183.78,22.88]
[1760749793619,1e-08,183.82,183.81,26.37938235]
[1760749794030,1e-08,183.82,183.81,32.48978276]
[1760749794240,1e-08,183.82,183.81,64.61900709]
[1760749798262,1e-08,183.82,183.81,61.40394788]
[1760749798451,1e-08,183.82,183.81,64.61900709]
[1760749798651,1e-08,183.82,183.81,65.16304712]
[1760749799337,1e-08,183.82,183.81,63.99581471]
[1760749800751,1e-08,183.82,183.81,36.03659038]
[1760749800955,1e-08,183.82,183.81,59.58659038]
[1760749801737,1e-08,183.82,183.81,36.72659038]
[1760749803633,1e-08,183.82,183.81,89.02659038]
[1760749803838,1e-08,183.82,183.81,91.20779385]
[1760749804058,1e-08,183.82,183.81,89.02659038]
[1760749805342,1e-08,183.82,183.81,89.00659038]
[1760749806659,1e-08,183.82,183.81,58.56876358]
[1760749806862,1e-08,183.82,183.81,88.33659038]
[1760749808143,1e-08,183.82,183.81,60.61659038]
[1760749808442,1e-08,183.82,183.81,88.33659038]
[1760749809052,1e-08,183.82,183.81,58.56876358]
[1760749809244,1e-08,183.82,183.81,88.31659038]
[1760749811575,1e-08,183.82,183.81,60.33226724]
[1760749811866,1e-08,183.82,183.81,88.03226724]
[1760749813365,1e-08,183.82,183.81,5.98444044]
[1760749813366,0.57000001,183.82,183.81,5.98444044]
[1760749813667,0.57000001,183.82,183.81,5.44040041]
[1760749815350,0.57000001,183.82,183.79,19.04306496]
[1760749815875,0.57,183.81,183.79,19.04306496]
[1760749817158,1e-08,183.82,183.79,19.04306496]
[1760749817352,0.57000001,183.82,183.79,19.04306496]
[1760749817860,1e-08,183.82,183.8,3.27174842]
[1760749818052,1e-08,183.82,183.81,25.89214994]
[1760749818861,1e-08,183.82,183.81,23.56]
[1760749819069,1e-08,183.82,183.81,25.6078268]
[1760749819570,0.1,183.93,183.89,22.88]
[1760749819780,0.1,183.93,183.92,24.9278268]
[1760749819954,0.1,183.93,183.9,0.54362584]
[1760749820159,0.67,183.93,183.92,2.0478268]
[1760749820854,0.1,183.93,183.92,25.6078268]
[1760749821561,0.1,183.93,183.92,58.10497338]
[1760749821889,0.1,183.93,183.92,58.78497338]
[1760749822054,0.1,183.93,183.92,59.06929652]
[1760749822583,1e-08,183.93,183.92,59.06929652]
[1760749822967,1e-08,183.93,183.92,31.32929652]
[1760749823155,1e-08,183.93,183.92,59.06929652]
[1760749825482,0.57000001,183.93,183.92,28.31714658]
[1760749825682,1e-08,183.93,183.92,30.36497338]
[1760749830094,0.57000001,183.93,183.92,7.48497338]
[1760749830386,1e-08,183.93,183.92,7.48497338]
[1760749835882,1e-08,183.93,183.92,8.16497338]
[1760749837287,1e-08,183.93,183.92,35.86497338]
[1760749837588,0.1,183.95,183.94,22.88]
[1760749837785,0.1,183.95,183.94,25.75565756]
[1760749838087,0.1,184.01,183.95,23.16432314]
[1760749838283,0.1,184.01,184.0,2.0478268]
[1760749838670,0.67,184.01,184.0,2.0478268]
[1760749839090,0.67,184.01,184.0,7.4826094]
[1760749839388,0.1,184.01,184.0,7.4826094]
[1760749840901,0.1,184.01,184.0,8.1526094]
[1760749841492,0.67,184.01,183.96,0.54338945]
[1760749841698,0.67,184.01,183.94,37.14134171]
[1760749841699,0.57,184.0,183.97,7.4833556]
[1760749842183,0.57,183.99,183.96,2.0478268]
[1760749842375,0.1,184.01,183.96,2.0478268]
[1760749842573,0.1,184.01,183.98,2.0478268]
[1760749843593,0.1,184.01,183.99,5.43507799]
[1760749843984,0.1,184.01,183.99,7.48290479]
[1760749845430,0.1,184.01,183.97,5.43540639]
[1760749845431,0.57,184.0,183.97,5.43540639]
[1760749845589,0.57,183.99,183.97,5.43540639]
[1760749847097,0.67,184.01,183.96,5.43594714]
[1760749847286,0.57,183.99,183.96,5.43594714]
[1760749847596,0.67,184.01,183.96,6.10594714]
[1760749847786,0.67,184.01,183.97,2.0478268]
[1760749848183,0.1,184.01,183.98,0.67]
[1760749848781,0.1,184.01,183.98,2.7178268]
[1760749850106,0.1,184.01,183.99,5.43507799]
[1760749854083,0.1,184.01,183.99,6.10507799]
[1760749856702,0.1,184.01,183.99,5.43507799]
[1760749856889,0.67,184.01,183.98,5.43536231]
[1760749857708,0.1,184.01,183.98,5.43536231]
[1760749858406,0.1,184.01,183.98,0.67]
[1760749858611,0.1,184.01,183.96,5.43596434]
[1760749858900,0.1,184.01,183.98,0.67]
[1760749859103,0.1,184.01,183.99,0.67]
[1760749859295,0.1,184.01,183.97,0.67]
[1760749859810,0.57,184.0,183.96,19.69587519]
[1760749860393,0.1,184.01,183.96,19.69587519]
[1760749860595,0.57,184.0,183.96,19.69587519]
[1760749860791,0.57,183.99,183.95,5.43625985]
[1760749860985,2.0478268,184.0,183.94,6.10651644]
[1760749861190,5.53474483,184.01,183.94,6.10651644]
[1760749861191,2.6178268,183.98,183.94,5.43651644]
[1760749861408,26.6481781,183.98,183.94,5.43651644]
[1760749861712,26.6481781,183.98,183.93,5.43678473]
[1760749861917,0.57,183.97,183.93,5.43678473]
[1760749862090,0.1,184.01,183.96,26.0781781]
[1760749862293,0.1,184.01,183.99,3.1981781]
[1760749862707,0.1,184.01,184.0,0.67]
[1760749863016,0.1,184.01,184.0,6.1047826]
[1760749864613,0.1,184.01,184.0,5.4347826]
[1760749865911,0.1,184.01,183.99,5.43507799]
[1760749866098,0.1,184.01,183.99,6.10507799]
[1760749866305,0.1,184.01,183.99,5.43507799]
[1760749866499,3.8681781,184.01,183.99,5.43507799]
[1760749867017,3.2981781,184.01,183.99,5.43507799]
[1760749867218,0.1,184.01,183.99,5.43507799]
[1760749867410,0.1,184.01,184.0,0.67]
[1760749867612,3.8681781,184.01,183.96,22.88]
[1760749867813,3.1981781,183.97,183.93,0.66]
[1760749868001,5.53449248,184.01,183.93,0.66]
[1760749868002,3.1981781,183.96,183.93,0.66]
[1760749868199,3.1981781,183.94,183.9,5.4377379]
[1760749868716,3.1981781,183.94,183.91,0.66]
[1760749869414,22.88,183.97,183.92,0.66]
[1760749869595,3.1981781,183.95,183.9,19.57585643]
[1760749869796,3.1981781,183.95,183.92,0.66]
[1760749870030,22.88,183.99,183.93,5.43685097]
[1760749870208,3.1981781,183.97,183.93,19.6889784]
[1760749870404,3.1981781,183.97,183.94,0.66]
[1760749870828,3.1981781,183.96,183.94,0.66]
[1760749870995,3.7681781,183.95,183.87,6.09862511]
[1760749871202,3.1981781,183.88,183.84,0.66]
[1760749871416,3.1981781,183.87,183.85,0.66]
[1760749871727,3.1981781,183.86,183.83,0.66]
[1760749871914,3.1981781,183.84,183.79,19.58745434]
[1760749872222,3.1981781,183.82,183.79,42.46745434]
[1760749872406,3.1981781,183.82,183.8,0.66]
[1760749872798,3.1981781,183.82,183.79,42.46745434]
[1760749873014,3.1981781,183.81,183.8,0.66]
[1760749874025,3.1981781,183.81,183.8,6.1006964]
[1760749876122,3.1981781,183.81,183.8,5.4406964]
[1760749877138,3.1981781,183.81,183.8,6.1006964]
[1760749877337,3.1981781,183.81,183.8,19.70243742]
[1760749878835,3.1981781,183.83,183.8,19.70243742]
[1760749879149,3.1981781,183.83,183.81,0.66]
[1760749880128,3.1981781,183.83,183.82,5.44010445]
[1760749880442,3.1981781,183.86,183.82,5.44010445]
[1760749880620,3.7681781,183.86,183.82,5.44010445]
[1760749881456,3.7681781,183.86,183.8,13.60174102]
[1760749881617,3.7681781,183.86,183.8,19.70243742]
[1760749881814,0.57,183.86,183.8,19.70243742]
[1760749882536,0.57,183.86,183.8,19.04243742]
[1760749882728,3.1981781,183.91,183.84,3.1981781]
[1760749882928,3.7681781,183.92,183.85,0.66]
[1760749883439,3.1981781,183.91,183.85,0.66]
[1760749883633,3.1981781,183.91,183.86,5.43892091]
[1760749883843,3.7681781,183.91,183.86,5.43892091]
[1760749884134,3.1981781,183.92,183.87,0.66]
[1760749884315,3.7681781,183.92,183.87,0.66]
[1760749884515,3.7681781,183.92,183.88,0.66]
[1760749884516,3.1981781,183.92,183.88,0.66]
[1760749884938,3.1981781,183.92,183.88,6.09812307]
[1760749885140,26.0781781,183.93,183.89,0.66]
[1760749885325,3.7681781,183.94,183.89,0.66]
[1760749885527,3.1981781,183.95,183.9,0.66]
[1760749885724,3.1981781,183.96,183.9,0.66]
[1760749885926,3.7681781,183.95,183.9,0.66]
[1760749886327,5.43572426,183.97,183.88,22.77595746]
[1760749886617,3.1981781,183.94,183.88,19.69394643]
[1760749886825,3.7681781,183.94,183.88,19.69394643]
[1760749887030,3.1981781,183.92,183.88,5.43812307]
[1760749887225,22.88,183.95,183.86,5.43862546]
[1760749887226,3.7681781,183.91,183.86,5.43862546]
[1760749887431,3.7681781,183.91,183.86,6.09862546]
[1760749887838,3.1981781,183.9,183.86,6.09862546]
[1760749888823,3.1981781,183.93,183.87,0.66]
[1760749889539,26.0781781,183.94,183.87,3.8581781]
[1760749889849,26.0781781,183.94,183.88,0.66]
[1760749890437,3.1981781,183.94,183.89,5.4380336]
[1760749890746,3.1981781,183.94,183.9,0.66]
[1760749890945,22.88,183.98,183.91,0.66]
[1760749891137,3.1981781,183.97,183.91,0.66]
[1760749891341,3.1981781,183.96,183.91,0.66]
[1760749891642,3.1981781,183.96,183.89,19.03311761]
[1760749891841,0.1,184.01,183.95,3.1981781]
[1760749892039,0.1,184.01,183.96,3.74153803]
[1760749892233,0.1,184.01,183.96,0.54335993]
[1760749892546,3.1981781,184.0,183.94,5.43655539]
[1760749892748,3.1981781,184.0,183.94,6.09655539]
[1760749893328,8.43367802,183.99,183.92,0.54362596]
[1760749893529,7.86367802,183.97,183.91,0.66]
[1760749894136,0.57,183.98,183.91,0.66]
[1760749894350,0.57,183.98,183.92,5.43710512]
[1760749894648,22.88,183.95,183.89,7.86367802]
[1760749895548,22.88,183.95,183.9,5.4377379]
[1760749895758,13.29904034,183.99,183.91,9.0673762]
[1760749896055,5.43536232,183.99,183.92,0.66]
[1760749896254,0.57,184.0,183.93,7.86367802]
[1760749896929,0.57,184.0,183.93,8.52367802]
[1760749897422,6.0048895,184.0,183.93,13.96026728]
[1760749897949,5.4348895,184.0,183.94,0.66]
[1760749898251,28.98449798,184.01,183.95,7.86367802]
[1760749898445,28.98449798,184.01,183.95,8.52367802]
[1760749898950,28.41449798,184.01,183.95,8.52367802]
[1760749899128,28.98449798,184.01,183.95,7.86367802]
[1760749899327,8.43367802,184.0,183.93,13.30026728]
[1760749899530,13.86846452,184.0,183.93,13.30026728]
[1760749899747,13.86846452,184.0,183.93,13.96026728]
[1760749900634,13.86846452,184.0,183.94,0.66]
[1760749901057,13.86846452,184.0,183.95,5.43625985]
[1760749901235,13.86846452,184.0,183.95,6.09625985]
[1760749901439,22.98,184.01,183.96,0.66]
[1760749901845,28.98451929,184.01,183.96,0.66]
[1760749902152,36.84819731,184.01,183.96,0.66]
[1760749902540,0.57,184.0,183.95,5.43625985]
[1760749902746,0.57,184.0,183.95,6.09625985]
[1760749904058,36.27819731,184.01,183.96,0.66]
[1760749904251,36.84819731,184.01,183.96,0.66]
[1760749904754,6.00484195,184.0,183.92,0.66]
[1760749905056,6.00484195,184.0,183.92,8.52367802]
[1760749905252,6.00484195,184.0,183.93,0.66]
[1760749906160,6.00484195,184.0,183.94,5.43655539]
[1760749907660,22.98,184.01,183.95,0.66]
[1760749907857,0.1,184.01,184.0,7.86367802]
[1760749908059,0.1,184.01,184.0,8.52367802]
[1760749908639,12.29653237,184.09,184.0,8.80800116]
[1760749908640,10.39653237,184.09,184.0,8.80800116]
[1760749908852,36.17553044,184.1,184.02,7.86367802]
[1760749909249,22.88,184.1,184.01,0.54344871]
[1760749909550,13.29610081,184.08,184.02,5.43419193]
[1760749911760,7.86367802,184.08,184.02,5.43419193]
[1760749913359,8.6264877,184.09,184.02,8.62850864]
[1760749914049,5.43217099,184.09,184.02,8.62850864]
[1760749914363,8.6264877,184.09,184.02,8.62850864]
[1760749915162,5.43217099,184.09,184.02,8.62850864]
[1760749915369,8.6264877,184.09,184.02,8.62850864]
[1760749915777,3.19431671,184.03,183.96,5.43596434]
[1760749915947,22.88,184.06,183.96,5.43596434]
[1760749916152,22.88,184.06,183.99,3.19431671]
[1760749916354,22.88,184.06,183.97,1.20356688]
[1760749916577,22.88,184.06,183.99,3.19431671]
[1760749917046,22.88,184.09,184.03,3.19431671]
[1760749917246,0.1,184.12,184.04,1.20336012]
[1760749917462,0.1,184.12,184.08,3.19431671]
[1760749917673,0.1,184.12,184.05,22.88]
[1760749917881,0.1,184.12,184.05,0.54330109]
[1760749917882,26.17431671,184.12,184.05,0.54330109]
[1760749918168,28.41124796,184.12,184.03,6.63719724]
[1760749918369,3.19431671,184.11,184.03,3.85431671]
[1760749918758,5.53124796,184.12,184.03,3.85431671]
[1760749918961,0.1,184.12,184.04,0.54336012]
[1760749919156,3.29431671,184.12,184.04,0.54336012]
[1760749919457,3.29431671,184.12,184.05,3.19431671]
[1760749919664,0.1,184.12,184.07,8.62703252]
[1760749919863,0.1,184.12,184.07,9.28703252]
[1760749920367,0.1,184.12,184.07,6.09271581]
[1760749920668,3.29431671,184.12,184.07,6.09271581]
[1760749920891,3.29431671,184.12,184.05,28.313293]
[1760749920892,3.19431671,184.09,184.05,28.313293]
[1760749921174,3.19431671,184.06,184.02,0.66]
[1760749921471,3.19431671,184.06,184.02,5.43403458]
[1760749921472,7.8565236,184.06,184.02,5.43403458]
[1760749921663,7.8565236,184.06,183.99,14.13043168]
[1760749921664,41.98940888,184.12,184.01,5.43448725]
[1760749921856,7.8565236,184.05,184.01,5.43448725]
[1760749922184,7.8565236,184.05,184.02,0.66]
[1760749922687,7.8565236,184.04,184.0,5.4347826]
[1760749922977,7.8565236,184.04,184.01,0.66]
[1760749923359,5.20754144,184.04,184.01,0.66]
[1760749923678,5.20754144,184.03,184.0,5.4347826]
[1760749924272,5.20754144,184.03,183.98,0.66]
[1760749924273,5.20754144,184.03,183.99,5.43507291]
[1760749924475,5.20754144,184.02,183.99,6.12507291]
[1760749924982,5.20754144,184.03,183.99,6.12507291]
[1760749925175,6.0032086,184.06,183.97,5.43566885]
[1760749925364,5.20754144,184.03,183.98,1.23315807]
[1760749925563,0.57,184.06,183.99,0.69]
[1760749925564,5.20754144,184.02,183.99,0.69]
[1760749925772,5.20754144,184.01,183.99,0.69]
[1760749926280,0.57,184.05,183.97,5.43566885]
[1760749926580,0.57,184.05,183.97,6.12566885]
[1760749926581,5.20754144,184.0,183.97,6.12566885]
[1760749926786,5.20754144,184.0,183.98,6.12535855]
[1760749927485,5.20754144,184.0,183.8,0.2]
[1760749927486,22.88,183.96,183.8,0.2]
[1760749927683,5.20754144,183.87,183.85,0.69]
[1760749927868,5.20754144,183.86,183.85,0.69]
[1760749928263,5.20754144,183.86,183.81,1.1812484]
[1760749928463,22.88,183.89,183.82,6.13991166]
[1760749928664,5.20754144,183.84,183.82,6.13991166]
[1760749928880,22.88,183.89,183.81,5.44037628]
[1760749928881,5.20754144,183.83,183.81,5.44037628]
[1760749929292,5.20754144,183.83,183.81,6.14037628]
[1760749929485,5.20754144,183.84,183.82,0.7]
[1760749930463,5.20754144,183.83,183.82,6.14010445]
[1760749930872,5.20754144,183.84,183.82,6.14010445]
[1760749931378,22.88,183.89,183.83,0.7]
[1760749931379,5.20754144,183.85,183.83,0.7]
[1760749931988,5.20754144,183.84,183.83,0.7]
[1760749932696,5.20754144,183.84,183.82,5.44010445]
[1760749932888,5.20754144,183.84,183.82,6.14010445]
[1760749933082,5.20754144,183.84,183.82,5.44010445]
[1760749933473,5.20754144,183.84,183.82,6.14010445]
[1760749933982,22.88,183.89,183.81,19.04140144]
[1760749934183,22.88,183.9,183.81,6.14040041]
[1760749934493,5.20754144,183.83,183.81,6.14040041]
[1760749934893,5.20754144,183.83,183.82,0.7]
[1760749935684,5.20754144,183.83,183.82,6.14010445]
[1760749936387,5.20754144,183.84,183.82,6.14010445]
[1760749940497,5.20754144,183.84,183.82,5.44010445]
[1760749940799,9.79311333,183.92,183.83,0.7]
[1760749940984,5.20754144,183.86,183.83,0.7]
[1760749941188,5.20754144,183.84,183.82,5.44010445]
[1760749941385,5.20754144,183.83,183.82,5.44010445]
[1760749941584,5.20754144,183.83,183.82,6.14010445]
[1760749941992,5.20754144,183.83,183.82,0.7]
[1760749942303,5.20754144,183.83,183.82,6.14010445]
[1760749943501,2.04963826,183.83,183.82,6.14010445]
[1760749944398,2.04963826,183.83,183.8,5.64050086]
[1760749944594,2.04963826,183.81,183.8,5.64050086]
[1760749944908,2.04963826,183.81,183.8,0.2]
[1760749945597,22.98,183.85,183.8,5.6406964]
[1760749945798,2.04963826,183.81,183.8,5.6406964]
[1760749946180,22.88,183.85,183.8,6.3406964]
[1760749946377,2.04963826,183.81,183.8,6.3406964]
[1760749948317,2.14963826,183.81,183.8,0.2]
[1760749948609,2.04963826,183.81,183.8,0.2]
[1760749954089,5.43977892,183.84,183.8,0.2]
[1760749954389,2.04963826,183.81,183.8,0.9]
[1760749954800,2.04963826,183.81,183.8,6.3406964]
[1760749955513,0.1,183.86,183.8,6.3406964]
[1760749955699,2.04963826,183.82,183.8,6.3406964]
[1760749955916,2.04963826,183.82,183.81,0.7]
[1760749956416,5.43892161,183.86,183.81,0.7]
[1760749956598,2.04963826,183.82,183.81,5.44024577]
[1760749957101,2.04963826,183.82,183.81,6.14024577]
[1760749957599,2.04963826,183.83,183.81,6.14024577]
[1760749957796,2.04963826,183.83,183.82,0.7]
[1760749958117,2.04963826,183.85,183.82,0.7]
[1760749958416,2.04963826,183.84,183.81,5.44024577]
[1760749958614,2.04963826,183.82,183.81,0.7]